Workbook

Sheet 2018支出
A1: 表5
A2: 2018年陆丰市社会保险基金支出预算表
I3: 单位：万元
A4: 项目名称 | B4: 2017年执行数 | C4: 2018年预算数 | D4: 预算数为 上年执行数的% | E4: 比2017年增加 | F4: 项目名称 | G4: 2017年执行数 | H4: 2018年预算数 | I4: 预算数为 上年执行数的% | J4: 比2017年增加
A5: 社会保险基金支出 | B5: =B11+B14 -> 55,575 | C5: =C11+C14 -> 61,523 | D5: =C5/B5 -> 111% | E5: =C5-B5 -> 5,948 | F5: × | G5: × | H5: × | I5: ×
A6: 一、企业职工基本养老保险基金支出 | E6: =C6-B6 -> 0 | F6: 五、城乡居民基本医疗保险基金支出 | J6: =H6-G6 -> 0
A7: 基本养老金 | E7: =C7-B7 -> 0 | F7: 城乡居民基本医疗保险基金医疗待遇支出 | J7: =H7-G7 -> 0
A8: 医疗补助金 | E8: =C8-B8 -> 0 | F8: 大病医疗保险支出 | J8: =H8-G8 -> 0
A9: 丧葬抚恤补助 | E9: =C9-B9 -> 0 | F9: 其他城乡居民基本医疗保险基金支出 | J9: ×
A10: 其他企业职工基本养老保险基金支出 | E10: =C10-B10 -> 0 | F10: 六、工伤保险基金支出 | J10: =H10-G10 -> 0
A11: 二、机关事业单位基本养老保险基金支出 | B11: =B12+B13 -> 30,785 | C11: =C12+C13 -> 33,724 | D11: =C11/B11 -> 110% | E11: =C11-B11 -> 2,939 | F11: 工伤保险待遇 | J11: =H11-G11 -> 0
A12: 基本养老金支出 | B12: 30,785 | C12: 33,724 | D12: =C12/B12 -> 110% | E12: =C12-B12 -> 2,939 | F12: 劳动能力鉴定支出 | J12: =H12-G12 -> 0
A13: 其他机关事业单位基本养老保险基金支出 | E13: =C13-B13 -> 0 | F13: 工伤预防费用支出 | J13: =H13-G13 -> 0
A14: 三、城乡居民基本养老保险基金支出 | B14: =SUM(B15:B18) -> 24,790 | C14: =SUM(C15:C18) -> 27,799 | D14: =C14/B14 -> 112% | E14: =C14-B14 -> 3,009 | F14: 其他工伤保险基金支出 | J14: =H14-G14 -> 0
A15: 基础养老金支出 | B15: 24,426 | C15: 27,407 | D15: =C15/B15 -> 112% | E15: =C15-B15 -> 2,981 | F15: 七、失业保险基金支出 | J15: =H15-G15 -> 0
A16: 个人账户养老金支出 | B16: 362 | C16: 388 | D16: =C16/B16 -> 107% | E16: =C16-B16 -> 26 | F16: 失业保险金 | J16: =H16-G16 -> 0
A17: 丧葬抚恤补助支出 | B17: 1 | C17: 4 | D17: =C17/B17 -> 333% | E17: =C17-B17 -> 3 | F17: 医疗保险费 | J17: =H17-G17 -> 0
A18: 其他城乡居民基本养老保险基金支出 | E18: =C18-B18 -> 0 | F18: 丧葬抚恤补助 | J18: =H18-G18 -> 0
A19: 四、职工基本医疗保险基金支出 | E19: =C19-B19 -> 0 | F19: 职业培训和职业介绍补贴 | J19: =H19-G19 -> 0
A20: 职工基本医疗保险统筹基金 | E20: =C20-B20 -> 0 | F20: 技能提升补贴支出 | J20: =H20-G20 -> 0
A21: 职工基本医疗保险个人账户基金 | E21: =C21-B21 -> 0 | F21: 其他失业保险基金支出 | J21: =H21-G21 -> 0
A22: 其他职工基本医疗保险基金支出 | E22: =C22-B22 -> 0 | F22: 八、生育保险基金支出 | J22: =H22-G22 -> 0
A23: × | B23: × | C23: × | D23: × | E23: × | F23: 生育医疗费用支出 | J23: =H23-G23 -> 0
A24: × | B24: × | C24: × | D24: × | E24: × | F24: 生育津贴支出 | J24: =H24-G24 -> 0
A25: × | B25: × | C25: × | D25: × | E25: × | F25: 其他生育保险基金支出
